[Event "Titled Tuesday Blitz March 28 Late 2023"]
[White "Ismagilov, Damir"]
[Black "Urbina Perez, Juan Antonio"]
[WhiteFideId "34199982"]
[BlackFideId "2217368"]
[WhiteElo "2078"]
[BlackElo "2197"]
[Result "1/2-1/2"]
[Round "06"]
[TimeControl "180+2"]
[Date "2023.03.28"]
[WhiteClock "0:00:20"]
[BlackClock "0:00:10"]

1. d4 {[%clk 0:02:23]}  d5 {[%clk 0:02:56]} 2. Bf4 {[%clk 0:02:24]}  c5 {[%clk 0:02:52]} 3. e3 {[%clk 0:02:24]}  Nc6 {[%clk 0:02:49]} 4. c3 {[%clk 0:02:24]}  cxd4 {[%clk 0:02:45]} 5. exd4 {[%clk 0:02:24]}  Nf6 {[%clk 0:02:43]} 6. Nd2 {[%clk 0:02:25]}  Bf5 {[%clk 0:02:37]} 7. Ngf3 {[%clk 0:02:25]}  h6 {[%clk 0:02:34]} 8. h3 {[%clk 0:02:25]}  e6 {[%clk 0:02:34]} 9. Bb5 {[%clk 0:02:25]}  a6 {[%clk 0:02:31]} 10. Bxc6+ {[%clk 0:02:25]}  bxc6 {[%clk 0:02:32]} 11. Ne5 {[%clk 0:02:26]}  Qb6 {[%clk 0:02:25]} 12. b4 {[%clk 0:02:22]}  Be7 {[%clk 0:02:23]} 13. Qa4 {[%clk 0:02:19]}  Rc8 {[%clk 0:02:20]} 14. O-O {[%clk 0:02:17]}  O-O {[%clk 0:02:19]} 15. Nb3 {[%clk 0:02:18]}  Rfd8 {[%clk 0:02:14]} 16. Na5 {[%clk 0:02:15]}  Qb5 {[%clk 0:01:58]} 17. Qxb5 {[%clk 0:02:04]}  cxb5 {[%clk 0:01:59]} 18. Nac6 {[%clk 0:02:04]}  Re8 {[%clk 0:01:58]} 19. a4 {[%clk 0:02:04]}  Bd6 {[%clk 0:01:42]} 20. Rfc1 {[%clk 0:01:50]}  Ne4 {[%clk 0:01:36]} 21. f3 {[%clk 0:01:44]}  Bxe5 {[%clk 0:01:30]} 22. Bxe5 {[%clk 0:01:29]}  Nd2 {[%clk 0:01:16]} 23. Na5 {[%clk 0:01:23]}  Nc4 {[%clk 0:01:03]} 24. Nxc4 {[%clk 0:01:16]}  Rxc4 {[%clk 0:01:04]} 25. axb5 {[%clk 0:01:15]}  axb5 {[%clk 0:01:01]} 26. Ra5 {[%clk 0:01:10]}  Bd3 {[%clk 0:00:57]} 27. Bf4 {[%clk 0:00:53]}  Rec8 {[%clk 0:00:51]} 28. Bd2 {[%clk 0:00:53]}  R4c6 {[%clk 0:00:48]} 29. Rca1 {[%clk 0:00:52]}  Bc4 {[%clk 0:00:47]} 30. Ra7 {[%clk 0:00:51]}  R6c7 {[%clk 0:00:46]} 31. Kf2 {[%clk 0:00:51]}  Kh7 {[%clk 0:00:42]} 32. Bf4 {[%clk 0:00:50]}  Rxa7 {[%clk 0:00:42]} 33. Rxa7 {[%clk 0:00:51]}  Kg6 {[%clk 0:00:42]} 34. g4 {[%clk 0:00:50]}  Bd3 {[%clk 0:00:36]} 35. Bd2 {[%clk 0:00:48]}  f6 {[%clk 0:00:27]} 36. h4 {[%clk 0:00:46]}  Kh7 {[%clk 0:00:24]} 37. Re7 {[%clk 0:00:45]}  Rc6 {[%clk 0:00:23]} 38. Ra7 {[%clk 0:00:46]}  Rc8 {[%clk 0:00:23]} 39. Be1 {[%clk 0:00:36]}  Kg6 {[%clk 0:00:23]} 40. Ke3 {[%clk 0:00:36]}  Bf1 {[%clk 0:00:21]} 41. Kd2 {[%clk 0:00:36]}  Kh7 {[%clk 0:00:17]} 42. Bg3 {[%clk 0:00:34]}  Kg6 {[%clk 0:00:15]} 43. Bd6 {[%clk 0:00:34]}  Rc6 {[%clk 0:00:15]} 44. Bc5 {[%clk 0:00:34]}  f5 {[%clk 0:00:10]} 45. Bf8 {[%clk 0:00:32]}  fxg4 {[%clk 0:00:09]} 46. fxg4 {[%clk 0:00:33]}  Kf6 {[%clk 0:00:07]} 47. Bxg7+ {[%clk 0:00:32]}  Kg6 {[%clk 0:00:08]} 48. Bf8 {[%clk 0:00:31]}  Bh3 {[%clk 0:00:08]} 49. Rg7+ {[%clk 0:00:22]}  Kf6 {[%clk 0:00:08]} 50. Rh7 {[%clk 0:00:22]}  Kg6 {[%clk 0:00:08]} 51. Rxh6+ {[%clk 0:00:22]}  Kf7 {[%clk 0:00:07]} 52. Bc5 {[%clk 0:00:22]}  Bxg4 {[%clk 0:00:07]} 53. Rh7+ {[%clk 0:00:22]}  Kg6 {[%clk 0:00:08]} 54. Rb7 {[%clk 0:00:22]}  Kh5 {[%clk 0:00:07]} 55. Rxb5 {[%clk 0:00:21]}  Kxh4 {[%clk 0:00:06]} 56. Rb8 {[%clk 0:00:22]}  Bf5 {[%clk 0:00:05]} 57. b5 {[%clk 0:00:22]}  Rc7 {[%clk 0:00:04]} 58. b6 {[%clk 0:00:22]}  Rd7 {[%clk 0:00:04]} 59. Rc8 {[%clk 0:00:20]}  Rb7 {[%clk 0:00:03]} 60. Rc7 {[%clk 0:00:20]}  Rxc7 {[%clk 0:00:04]} 61. bxc7 {[%clk 0:00:21]}  e5 {[%clk 0:00:04]} 62. dxe5 {[%clk 0:00:21]}  Bc8 {[%clk 0:00:05]} 63. Ke3 {[%clk 0:00:21]}  Kg4 {[%clk 0:00:05]} 64. Kd4 {[%clk 0:00:20]}  Be6 {[%clk 0:00:06]} 65. c8=Q {[%clk 0:00:13]}  Bxc8 {[%clk 0:00:06]} 66. Kxd5 {[%clk 0:00:14]}  Kf5 {[%clk 0:00:06]} 67. Kd6 {[%clk 0:00:15]}  Be6 {[%clk 0:00:06]} 68. Bd4 {[%clk 0:00:15]}  Bc4 {[%clk 0:00:06]} 69. Kc5 {[%clk 0:00:15]}  Bb3 {[%clk 0:00:06]} 70. Kb5 {[%clk 0:00:13]}  Ke6 {[%clk 0:00:06]} 71. c4 {[%clk 0:00:14]}  Ba2 {[%clk 0:00:06]} 72. c5 {[%clk 0:00:13]}  Bb1 {[%clk 0:00:04]} 73. c6 {[%clk 0:00:13]}  Bd3+ {[%clk 0:00:05]} 74. Kb6 {[%clk 0:00:13]}  Be4 {[%clk 0:00:05]} 75. Kc7 {[%clk 0:00:08]}  Bd5 {[%clk 0:00:04]} 76. Bc3 {[%clk 0:00:06]}  Be4 {[%clk 0:00:03]} 77. Kb6 {[%clk 0:00:06]}  Bd5 {[%clk 0:00:03]} 78. Bb2 {[%clk 0:00:07]}  Be4 {[%clk 0:00:03]} 79. Ba1 {[%clk 0:00:07]}  Bd5 {[%clk 0:00:04]} 80. Bc3 {[%clk 0:00:08]}  Be4 {[%clk 0:00:04]} 81. c7 {[%clk 0:00:09]}  Kd7 {[%clk 0:00:04]} 82. e6+ {[%clk 0:00:06]}  Kc8 {[%clk 0:00:03]} 83. Be5 {[%clk 0:00:04]}  Bf5 {[%clk 0:00:02]} 84. e7 {[%clk 0:00:04]}  Bd7 {[%clk 0:00:03]} 85. Kc5 {[%clk 0:00:05]}  Be8 {[%clk 0:00:03]} 86. Kd6 {[%clk 0:00:06]}  Bf7 {[%clk 0:00:03]} 87. Bf4 {[%clk 0:00:05]}  Be8 {[%clk 0:00:03]} 88. Ke5 {[%clk 0:00:05]}  Kd7 {[%clk 0:00:03]} 89. Kf6 {[%clk 0:00:06]}  Kc8 {[%clk 0:00:03]} 90. Kg7 {[%clk 0:00:06]}  Kd7 {[%clk 0:00:02]} 91. Kf8 {[%clk 0:00:07]}  Bg6 {[%clk 0:00:03]} 92. Be5 {[%clk 0:00:08]}  Bh5 {[%clk 0:00:03]} 93. Bd6 {[%clk 0:00:09]}  Bg6 {[%clk 0:00:03]} 94. Bc5 {[%clk 0:00:09]}  Bh5 {[%clk 0:00:04]} 95. Bb6 {[%clk 0:00:09]}  Bg6 {[%clk 0:00:04]} 96. Kg7 {[%clk 0:00:07]}  Bh5 {[%clk 0:00:04]} 97. Kf6 {[%clk 0:00:07]}  Be8 {[%clk 0:00:05]} 98. Bc5 {[%clk 0:00:07]}  Kc8 {[%clk 0:00:05]} 99. Bd6 {[%clk 0:00:07]}  Kd7 {[%clk 0:00:06]} 100. Ke5 {[%clk 0:00:08]}  Kc8 {[%clk 0:00:06]} 101. Kd5 {[%clk 0:00:08]}  Kd7 {[%clk 0:00:07]} 102. Kc5 {[%clk 0:00:09]}  Kc8 {[%clk 0:00:08]} 103. Kb6 {[%clk 0:00:10]}  Bf7 {[%clk 0:00:08]} 104. Bc5 {[%clk 0:00:10]}  Be8 {[%clk 0:00:09]} 105. Bb4 {[%clk 0:00:11]}  Bf7 {[%clk 0:00:10]} 106. Kc5 {[%clk 0:00:12]}  Be8 {[%clk 0:00:11]} 107. Kd6 {[%clk 0:00:12]}  Bf7 {[%clk 0:00:11]} 108. Ba5 {[%clk 0:00:13]}  Be8 {[%clk 0:00:11]} 109. Ke6 {[%clk 0:00:14]}  Bh5 {[%clk 0:00:09]} 110. Kf6 {[%clk 0:00:14]}  Be8 {[%clk 0:00:09]} 111. Kg5 {[%clk 0:00:14]}  Kd7 {[%clk 0:00:10]} 112. Kh6 {[%clk 0:00:15]}  Kc8 {[%clk 0:00:09]} 113. Kg7 {[%clk 0:00:15]}  Kd7 {[%clk 0:00:09]} 114. Kf8 {[%clk 0:00:16]}  Bh5 {[%clk 0:00:10]} 115. Kg8 {[%clk 0:00:15]}  Bg6 {[%clk 0:00:10]} 116. Kg7 {[%clk 0:00:15]}  Bh5 {[%clk 0:00:11]} 117. Kh6 {[%clk 0:00:16]}  Be8 {[%clk 0:00:11]} 118. Kg5 {[%clk 0:00:16]}  Kc8 {[%clk 0:00:10]} 119. Kf6 {[%clk 0:00:17]}  Kd7 {[%clk 0:00:11]} 120. Kg7 {[%clk 0:00:17]}  Bh5 {[%clk 0:00:09]} 121. Bb6 {[%clk 0:00:18]}  Be8 {[%clk 0:00:09]} 122. Kf8 {[%clk 0:00:18]}  Bh5 {[%clk 0:00:10]} 123. Ba5 {[%clk 0:00:19]}  Bg6 {[%clk 0:00:10]} 124. Kg7 {[%clk 0:00:20]}  Bh5 {[%clk 0:00:10]} 1/2-1/2


[Site "https://www.chess.com"]

[Event "Titled Tuesday Blitz March 28 Late 2023"]
[White "Melikyan, Gnel"]
[Black "Gonzalez, Francisco Silva"]
[WhiteFideId "54109990"]
[BlackFideId "1512285"]
[WhiteElo "2138"]
[BlackElo "2074"]
[Result "1-0"]
[Round "06"]
[TimeControl "180+2"]
[Date "2023.03.28"]
[WhiteClock "0:01:38"]
[BlackClock "0:00:56"]

1. Na3 {[%clk 0:02:59]}  e5 {[%clk 0:02:58]} 2. Nc4 {[%clk 0:02:59]}  e4 {[%clk 0:02:55]} 3. d3 {[%clk 0:02:59]}  d5 {[%clk 0:02:55]} 4. Ne3 {[%clk 0:02:59]}  exd3 {[%clk 0:02:53]} 5. Qxd3 {[%clk 0:02:59]}  Nf6 {[%clk 0:02:52]} 6. c4 {[%clk 0:02:57]}  d4 {[%clk 0:02:50]} 7. Nc2 {[%clk 0:02:57]}  c5 {[%clk 0:02:49]} 8. e3 {[%clk 0:02:57]}  Nc6 {[%clk 0:02:49]} 9. exd4 {[%clk 0:02:57]}  cxd4 {[%clk 0:02:48]} 10. Nf3 {[%clk 0:02:57]}  Nb4 {[%clk 0:02:40]} 11. Nxb4 {[%clk 0:02:52]}  Bxb4+ {[%clk 0:02:39]} 12. Bd2 {[%clk 0:02:53]}  Bxd2+ {[%clk 0:02:35]} 13. Qxd2 {[%clk 0:02:53]}  O-O {[%clk 0:02:35]} 14. Be2 {[%clk 0:02:52]}  Re8 {[%clk 0:02:33]} 15. O-O {[%clk 0:02:52]}  Qb6 {[%clk 0:02:12]} 16. Rfe1 {[%clk 0:02:48]}  Bg4 {[%clk 0:02:10]} 17. Qxd4 {[%clk 0:02:43]}  Rxe2 {[%clk 0:01:58]} 18. Rxe2 {[%clk 0:02:29]}  Qxd4 {[%clk 0:01:58]} 19. Nxd4 {[%clk 0:02:30]}  Bxe2 {[%clk 0:01:58]} 20. Nxe2 {[%clk 0:02:31]}  Rd8 {[%clk 0:01:58]} 21. Nc3 {[%clk 0:02:30]}  g6 {[%clk 0:01:53]} 22. Rd1 {[%clk 0:02:29]}  Rc8 {[%clk 0:01:51]} 23. b3 {[%clk 0:02:27]}  Kg7 {[%clk 0:01:51]} 24. f3 {[%clk 0:02:27]}  a6 {[%clk 0:01:51]} 25. a4 {[%clk 0:02:26]}  h5 {[%clk 0:01:49]} 26. Kf2 {[%clk 0:02:26]}  Rc6 {[%clk 0:01:47]} 27. Rd8 {[%clk 0:02:25]}  h4 {[%clk 0:01:45]} 28. Ne2 {[%clk 0:02:09]}  b5 {[%clk 0:01:43]} 29. axb5 {[%clk 0:02:08]}  axb5 {[%clk 0:01:42]} 30. Nd4 {[%clk 0:02:08]}  Ra6 {[%clk 0:01:42]} 31. cxb5 {[%clk 0:02:05]}  Ra2+ {[%clk 0:01:42]} 32. Ke3 {[%clk 0:02:00]}  Rxg2 {[%clk 0:01:35]} 33. b6 {[%clk 0:02:00]}  Rxh2 {[%clk 0:01:20]} 34. b7 {[%clk 0:01:59]}  h3 {[%clk 0:01:20]} 35. b8=Q {[%clk 0:01:58]}  Rh1 {[%clk 0:01:19]} 36. Rh8 {[%clk 0:01:53]}  Nh5 {[%clk 0:01:10]} 37. Qe5+ {[%clk 0:01:44]}  Nf6 {[%clk 0:01:11]} 38. Rh4 {[%clk 0:01:39]}  Re1+ {[%clk 0:01:08]} 39. Ne2 {[%clk 0:01:39]}  h2 {[%clk 0:01:04]} 40. Rxh2 {[%clk 0:01:38]}  Rh1 {[%clk 0:00:56]} 41. Rxh1 {[%clk 0:01:38]} 1-0


[Site "https://www.chess.com"]

[Event "Titled Tuesday Blitz March 28 Late 2023"]
[White "Gatterer, Florian"]
[Black "Spata, German"]
[WhiteFideId "811688"]
[BlackFideId "113026"]
[WhiteElo "2221"]
[BlackElo "2238"]
[Result "1-0"]
[Round "06"]
[TimeControl "180+2"]
[Date "2023.03.28"]
[WhiteClock "0:00:24"]
[BlackClock "0:00:07"]

1. d4 {[%clk 0:03:00]}  d5 {[%clk 0:02:57]} 2. Nf3 {[%clk 0:03:00]}  c6 {[%clk 0:02:54]} 3. g3 {[%clk 0:02:56]}  Nf6 {[%clk 0:02:53]} 4. Bg2 {[%clk 0:02:56]}  Bf5 {[%clk 0:02:52]} 5. c4 {[%clk 0:02:56]}  h6 {[%clk 0:02:52]} 6. Nc3 {[%clk 0:02:53]}  e6 {[%clk 0:02:52]} 7. Qb3 {[%clk 0:02:50]}  Qb6 {[%clk 0:02:52]} 8. c5 {[%clk 0:02:50]}  Qa6 {[%clk 0:02:46]} 9. Bf1 {[%clk 0:02:44]}  Ne4 {[%clk 0:02:35]} 10. e3 {[%clk 0:02:30]}  b5 {[%clk 0:02:32]} 11. Be2 {[%clk 0:02:11]}  Qb7 {[%clk 0:02:16]} 12. a4 {[%clk 0:02:07]}  a6 {[%clk 0:02:15]} 13. axb5 {[%clk 0:02:04]}  axb5 {[%clk 0:02:15]} 14. Rxa8 {[%clk 0:02:04]}  Qxa8 {[%clk 0:02:15]} 15. O-O {[%clk 0:01:45]}  Nd7 {[%clk 0:02:08]} 16. Nxb5 {[%clk 0:01:32]}  cxb5 {[%clk 0:02:01]} 17. Bxb5 {[%clk 0:01:31]}  Be7 {[%clk 0:01:51]} 18. Ne5 {[%clk 0:01:18]}  Nf6 {[%clk 0:01:50]} 19. Bd2 {[%clk 0:01:04]}  O-O {[%clk 0:00:36]} 20. Nxd7 {[%clk 0:00:58]}  Nxd7 {[%clk 0:00:35]} 21. Bxd7 {[%clk 0:00:54]}  Rb8 {[%clk 0:00:35]} 22. Qc3 {[%clk 0:00:54]}  Qa7 {[%clk 0:00:17]} 23. c6 {[%clk 0:00:52]}  Bd8 {[%clk 0:00:17]} 24. b3 {[%clk 0:00:49]}  Bc7 {[%clk 0:00:12]} 25. Ra1 {[%clk 0:00:43]}  Qb6 {[%clk 0:00:12]} 26. b4 {[%clk 0:00:38]}  Bd6 {[%clk 0:00:11]} 27. Kg2 {[%clk 0:00:30]}  Be4+ {[%clk 0:00:07]} 28. f3 {[%clk 0:00:30]}  Bg6 {[%clk 0:00:07]} 29. h4 {[%clk 0:00:30]}  Bxb4 {[%clk 0:00:05]} 30. Qxb4 {[%clk 0:00:29]}  Qxb4 {[%clk 0:00:06]} 31. Bxb4 {[%clk 0:00:28]}  Rxb4 {[%clk 0:00:07]} 32. c7 {[%clk 0:00:24]} 1-0


[Site "https://www.chess.com"]

[Event "Titled Tuesday Blitz March 28 Late 2023"]
[White "Klenburg, Michael"]
[Black "Fan_Of_Chucky"]
[WhiteFideId "14102072"]
[WhiteElo "2396"]
[BlackElo "2378"]
[Result "0-1"]
[Round "06"]
[TimeControl "180+2"]
[Date "2023.03.28"]
[WhiteClock "0:00:17"]
[BlackClock "0:00:08"]

1. g3 {[%clk 0:02:59]}  c5 {[%clk 0:02:57]} 2. Bg2 {[%clk 0:02:59]}  g6 {[%clk 0:02:54]} 3. e4 {[%clk 0:02:59]}  Bg7 {[%clk 0:02:54]} 4. d3 {[%clk 0:02:59]}  Nc6 {[%clk 0:02:54]} 5. f4 {[%clk 0:02:59]}  d6 {[%clk 0:02:54]} 6. Nf3 {[%clk 0:02:59]}  e6 {[%clk 0:02:55]} 7. O-O {[%clk 0:02:59]}  Nge7 {[%clk 0:02:55]} 8. c3 {[%clk 0:02:59]}  O-O {[%clk 0:02:51]} 9. Be3 {[%clk 0:02:59]}  b6 {[%clk 0:02:39]} 10. Bf2 {[%clk 0:02:59]}  Bb7 {[%clk 0:02:39]} 11. Re1 {[%clk 0:02:58]}  Qc7 {[%clk 0:02:36]} 12. a4 {[%clk 0:02:58]}  a6 {[%clk 0:02:35]} 13. Na3 {[%clk 0:02:58]}  Rfd8 {[%clk 0:02:31]} 14. Rc1 {[%clk 0:02:54]}  Na7 {[%clk 0:01:35]} 15. Qb3 {[%clk 0:02:50]}  Rab8 {[%clk 0:01:30]} 16. d4 {[%clk 0:02:26]}  b5 {[%clk 0:01:29]} 17. axb5 {[%clk 0:02:25]}  Nxb5 {[%clk 0:01:24]} 18. Nc4 {[%clk 0:02:09]}  Bxe4 {[%clk 0:01:06]} 19. Rxe4 {[%clk 0:02:06]}  d5 {[%clk 0:01:06]} 20. Ree1 {[%clk 0:02:05]}  Nxd4 {[%clk 0:01:06]} 21. Qa4 {[%clk 0:01:57]}  Nxf3+ {[%clk 0:01:02]} 22. Bxf3 {[%clk 0:01:57]}  dxc4 {[%clk 0:01:03]} 23. Qxc4 {[%clk 0:01:55]}  Rxb2 {[%clk 0:01:01]} 24. Qxc5 {[%clk 0:01:54]}  Qxc5 {[%clk 0:00:32]} 25. Bxc5 {[%clk 0:01:54]}  Nd5 {[%clk 0:00:30]} 26. c4 {[%clk 0:01:45]}  Nc3 {[%clk 0:00:23]} 27. Be3 {[%clk 0:01:08]}  Rc8 {[%clk 0:00:14]} 28. c5 {[%clk 0:01:06]}  a5 {[%clk 0:00:14]} 29. c6 {[%clk 0:01:04]}  a4 {[%clk 0:00:13]} 30. Ra1 {[%clk 0:00:51]}  Rc2 {[%clk 0:00:06]} 31. Ra3 {[%clk 0:00:40]}  Bf8 {[%clk 0:00:06]} 32. Raa1 {[%clk 0:00:40]}  a3 {[%clk 0:00:06]} 33. Rec1 {[%clk 0:00:38]}  Rxc1+ {[%clk 0:00:05]} 34. Rxc1 {[%clk 0:00:38]}  Bg7 {[%clk 0:00:06]} 35. Bb6 {[%clk 0:00:31]}  a2 {[%clk 0:00:05]} 36. c7 {[%clk 0:00:30]}  Nd5 {[%clk 0:00:05]} 37. Bxd5 {[%clk 0:00:18]}  exd5 {[%clk 0:00:06]} 38. Kf1 {[%clk 0:00:17]}  a1=Q {[%clk 0:00:07]} 39. Rxa1 {[%clk 0:00:17]}  Bxa1 {[%clk 0:00:06]} 40. Ke2 {[%clk 0:00:18]}  Bf6 {[%clk 0:00:06]} 41. Kd3 {[%clk 0:00:18]}  Be7 {[%clk 0:00:07]} 42. Kd4 {[%clk 0:00:18]}  Bd6 {[%clk 0:00:08]} 43. Kxd5 {[%clk 0:00:18]}  Bxc7 {[%clk 0:00:09]} 44. Bd4 {[%clk 0:00:17]}  Rd8+ {[%clk 0:00:08]} 0-1


[Site "https://www.chess.com"]

[Event "Titled Tuesday Blitz March 28 Late 2023"]
[White "Napoli, Nicolo"]
[Black "Sanchez Alvares, Kelvin Antonio"]
[WhiteFideId "813702"]
[BlackFideId "3906680"]
[WhiteElo "2308"]
[BlackElo "2217"]
[Result "0-1"]
[Round "06"]
[TimeControl "180+2"]
[Date "2023.03.28"]
[WhiteClock "0:00:48"]
[BlackClock "0:00:41"]

1. e4 {[%clk 0:03:00]}  e5 {[%clk 0:02:59]} 2. Nf3 {[%clk 0:03:00]}  Nc6 {[%clk 0:02:59]} 3. d4 {[%clk 0:02:59]}  exd4 {[%clk 0:02:59]} 4. Nxd4 {[%clk 0:03:00]}  Qh4 {[%clk 0:02:59]} 5. Nb5 {[%clk 0:02:59]}  Bc5 {[%clk 0:02:58]} 6. Qf3 {[%clk 0:02:39]}  Nd4 {[%clk 0:02:55]} 7. Nxd4 {[%clk 0:02:33]}  Bxd4 {[%clk 0:02:55]} 8. Bc4 {[%clk 0:02:28]}  Qf6 {[%clk 0:02:53]} 9. Qe2 {[%clk 0:02:22]}  d6 {[%clk 0:02:51]} 10. Nd2 {[%clk 0:02:20]}  h6 {[%clk 0:02:48]} 11. Nf3 {[%clk 0:02:20]}  Bg4 {[%clk 0:02:42]} 12. c3 {[%clk 0:02:13]}  Bb6 {[%clk 0:02:42]} 13. Be3 {[%clk 0:02:08]}  Ne7 {[%clk 0:02:38]} 14. O-O {[%clk 0:02:05]}  Ng6 {[%clk 0:02:37]} 15. h3 {[%clk 0:02:02]}  Bxf3 {[%clk 0:02:28]} 16. Qxf3 {[%clk 0:02:02]}  Qxf3 {[%clk 0:02:26]} 17. gxf3 {[%clk 0:02:03]}  O-O {[%clk 0:02:19]} 18. Be2 {[%clk 0:01:51]}  f5 {[%clk 0:02:10]} 19. Kh2 {[%clk 0:01:43]}  f4 {[%clk 0:02:06]} 20. Bxb6 {[%clk 0:01:27]}  axb6 {[%clk 0:01:54]} 21. Bc4+ {[%clk 0:01:23]}  Kh7 {[%clk 0:01:50]} 22. Bd5 {[%clk 0:01:24]}  c6 {[%clk 0:01:49]} 23. Bb3 {[%clk 0:01:24]}  Ne5 {[%clk 0:01:48]} 24. Bd1 {[%clk 0:01:14]}  b5 {[%clk 0:01:47]} 25. Be2 {[%clk 0:01:14]}  Rf6 {[%clk 0:01:42]} 26. a3 {[%clk 0:01:14]}  Kg8 {[%clk 0:01:39]} 27. Rad1 {[%clk 0:01:14]}  Kf7 {[%clk 0:01:39]} 28. Rd2 {[%clk 0:01:14]}  Ke7 {[%clk 0:01:39]} 29. Rfd1 {[%clk 0:01:15]}  g5 {[%clk 0:01:38]} 30. Rd4 {[%clk 0:01:13]}  Rg8 {[%clk 0:01:27]} 31. c4 {[%clk 0:01:10]}  c5 {[%clk 0:01:22]} 32. R4d2 {[%clk 0:01:08]}  bxc4 {[%clk 0:01:22]} 33. Rc2 {[%clk 0:01:02]}  b5 {[%clk 0:01:21]} 34. a4 {[%clk 0:01:00]}  bxa4 {[%clk 0:01:19]} 35. Ra1 {[%clk 0:00:57]}  Ra8 {[%clk 0:01:18]} 36. Kg2 {[%clk 0:00:57]}  Rff8 {[%clk 0:01:09]} 37. Bxc4 {[%clk 0:00:57]}  Rfb8 {[%clk 0:01:08]} 38. Bd5 {[%clk 0:00:52]}  Ra6 {[%clk 0:01:05]} 39. Ra2 {[%clk 0:00:52]}  Rb4 {[%clk 0:00:56]} 40. Rc3 {[%clk 0:00:52]}  Rab6 {[%clk 0:00:55]} 41. Rca3 {[%clk 0:00:49]}  Rxb2 {[%clk 0:00:55]} 42. Rxa4 {[%clk 0:00:48]}  Rxa2 {[%clk 0:00:51]} 43. Rxa2 {[%clk 0:00:49]}  Rb8 {[%clk 0:00:43]} 44. Ra7+ {[%clk 0:00:48]}  Kf6 {[%clk 0:00:42]} 45. Rh7 {[%clk 0:00:48]}  Kg6 {[%clk 0:00:41]} 46. Rd7 {[%clk 0:00:48]}  Nxd7 {[%clk 0:00:41]} 0-1


[Site "https://www.chess.com"]

[Event "Titled Tuesday Blitz March 28 Late 2023"]
[White "Krishnan, Varun"]
[Black "ilya2700"]
[WhiteFideId "5054508"]
[WhiteElo "2525"]
[BlackElo "2243"]
[Result "1-0"]
[Round "06"]
[TimeControl "180+2"]
[Date "2023.03.28"]
[WhiteClock "0:01:08"]
[BlackClock "0:00:05"]

1. d4 {[%clk 0:03:00]}  Nf6 {[%clk 0:02:56]} 2. c4 {[%clk 0:03:00]}  g6 {[%clk 0:02:57]} 3. g3 {[%clk 0:03:00]}  Bg7 {[%clk 0:02:57]} 4. Bg2 {[%clk 0:03:01]}  O-O {[%clk 0:02:58]} 5. Nf3 {[%clk 0:03:01]}  d6 {[%clk 0:02:59]} 6. O-O {[%clk 0:03:02]}  c5 {[%clk 0:03:00]} 7. Nc3 {[%clk 0:03:02]}  Nc6 {[%clk 0:03:00]} 8. d5 {[%clk 0:03:00]}  Na5 {[%clk 0:03:00]} 9. Nd2 {[%clk 0:02:55]}  a6 {[%clk 0:02:59]} 10. a3 {[%clk 0:02:53]}  b6 {[%clk 0:02:24]} 11. b4 {[%clk 0:02:45]}  Nb7 {[%clk 0:02:22]} 12. Bb2 {[%clk 0:02:44]}  a5 {[%clk 0:02:15]} 13. b5 {[%clk 0:02:44]}  Ra7 {[%clk 0:02:07]} 14. e4 {[%clk 0:02:38]}  e6 {[%clk 0:02:06]} 15. Qc2 {[%clk 0:02:30]}  exd5 {[%clk 0:02:06]} 16. cxd5 {[%clk 0:02:29]}  Re8 {[%clk 0:02:02]} 17. Nc4 {[%clk 0:02:27]}  Nd7 {[%clk 0:01:32]} 18. f4 {[%clk 0:02:24]}  a4 {[%clk 0:01:30]} 19. Rae1 {[%clk 0:02:15]}  Bd4+ {[%clk 0:01:24]} 20. Kh1 {[%clk 0:02:14]}  Nf6 {[%clk 0:01:25]} 21. Nxa4 {[%clk 0:02:06]}  Bxb2 {[%clk 0:01:13]} 22. Naxb2 {[%clk 0:02:05]}  Na5 {[%clk 0:01:10]} 23. Nxa5 {[%clk 0:02:02]}  Rxa5 {[%clk 0:01:11]} 24. Nc4 {[%clk 0:02:01]}  Rxb5 {[%clk 0:01:11]} 25. e5 {[%clk 0:01:55]}  Bf5 {[%clk 0:01:10]} 26. Qd2 {[%clk 0:01:48]}  dxe5 {[%clk 0:00:56]} 27. fxe5 {[%clk 0:01:46]}  Ng4 {[%clk 0:00:53]} 28. Nd6 {[%clk 0:01:43]}  Rb3 {[%clk 0:00:30]} 29. Nxe8 {[%clk 0:01:35]}  Qxe8 {[%clk 0:00:31]} 30. d6 {[%clk 0:01:34]}  Rxa3 {[%clk 0:00:21]} 31. h3 {[%clk 0:01:27]}  Rd3 {[%clk 0:00:15]} 32. Qg5 {[%clk 0:01:15]}  Nxe5 {[%clk 0:00:13]} 33. Rxf5 {[%clk 0:01:10]}  Rxd6 {[%clk 0:00:06]} 34. Rfxe5 {[%clk 0:01:09]}  Qf8 {[%clk 0:00:05]} 35. Re8 {[%clk 0:01:08]} 1-0


[Site "https://www.chess.com"]